bitfinex-derivatives/quotes_ETHF0:USTF0_20240829
["timestamp","ask_amount","ask_price","bid_price","bid_amount"]
[1724893695345,7.08e-06,2534.7,2534.4,0.39446]
[1724893695756,7.08e-06,2534.7,2534.5,0.39445]
[1724893697953,7.08e-06,2534.7,2534.6,0.39444]
[1724893698849,7.08e-06,2534.7,2534.6,4.34004]
[1724893699057,7.08e-06,2534.7,2534.6,17.95394]
[1724893699247,0.3656,2535.7,2534.6,57.76784]
[1724893699455,0.02293552,2535.7,2535.6,0.39428]
[1724893699756,3.9357,2536.4,2535.9,0.39423]
[1724893700055,4.32986,2536.4,2535.9,44.40203]
[1724893700266,3.94161483,2536.4,2535.9,44.01371483]
[1724893700554,3.94161483,2536.4,2536.0,0.39422]
[1724893700751,3.94161483,2536.4,2535.9,44.01371483]
[1724893701552,0.39418,2536.3,2535.9,40.80591483]
[1724893701860,0.73381483,2536.4,2535.9,44.01371483]
[1724893702050,0.73381483,2536.4,2536.0,0.39421]
[1724893702247,0.00591483,2536.4,2536.2,0.39418]
[1724893702457,0.00591483,2536.4,2536.3,0.39417]
[1724893702659,0.00591483,2536.4,2536.2,3.60198]
[1724893703354,0.00591483,2536.4,2536.3,0.3601]
[1724893703760,0.00591483,2536.4,2536.3,4.69667]
[1724893704553,0.00591483,2536.4,2536.3,4.3025]
[1724893704757,0.00591483,2536.4,2536.3,0.3601]
[1724893706451,0.00591483,2536.4,2536.3,4.69667]
[1724893709261,0.39388,2538.2,2538.1,0.00591483]
[1724893709458,4.33388,2538.2,2538.1,0.00591483]
[1724893709664,10.33388,2538.2,2538.1,0.00591483]
[1724893710059,9.94,2538.2,2537.4,3.2078]
[1724893710361,3.60173,2537.9,2537.2,0.7475]
[1724893710567,0.75764,2537.8,2537.2,0.7475]
[1724893710868,0.3637,2537.8,2537.2,0.376]
[1724893711166,0.3637,2537.8,2537.2,0.38191483]
[1724893711463,0.3637,2537.8,2537.2,0.00591483]
[1724893712064,3.42,2537.7,2537.2,0.00591483]
[1724893712268,0.39401,2537.4,2537.2,0.00591483]
[1724893712455,3.2078,2537.6,2537.2,0.00591483]
[1724893712456,4.18922,2537.3,2537.2,0.00591483]
[1724893712656,4.705,2537.3,2537.2,0.00591483]
[1724893713063,3.42,2537.6,2537.2,0.00591483]
[1724893713363,3.81397,2537.6,2537.2,0.00591483]
[1724893713576,0.3752,2537.5,2537.2,0.00591483]
[1724893714460,0.02288078,2537.4,2537.2,0.00591483]
[1724893714766,0.39396,2537.7,2537.2,0.00591483]
[1724893714966,0.02287731,2537.6,2537.2,0.00591483]
[1724893715463,0.3752,2537.9,2537.3,0.39401]
[1724893715667,3.44287476,2537.8,2537.2,3.21371483]
[1724893715864,3.23067476,2537.7,2537.2,3.21371483]
[1724893716071,0.02287476,2537.6,2537.5,0.39399]
[1724893716367,0.02286809,2538.1,2537.5,3.60178]
[1724893716566,3.98598,2538.2,2537.5,3.60178]
[1724893716771,0.02286521,2538.1,2537.6,0.3639]
[1724893717271,0.02286521,2538.1,2537.9,0.39391]
[1724893717566,7.02162,2538.6,2537.8,3.2078]
[1724893717567,0.39386,2538.3,2537.8,3.2078]
[1724893717762,0.02285662,2538.2,2537.6,0.75786]
[1724893717959,0.41673662,2538.2,2537.6,0.3639]
[1724893718159,0.41675662,2538.1,2537.7,40.8]
[1724893718365,3.42,2538.4,2537.7,40.8]
[1724893718567,0.41673141,2538.3,2537.7,40.8]
[1724893718766,0.02286141,2538.2,2537.7,40.8]
[1724893719470,0.02286141,2538.3,2537.8,3.2078]
[1724893719670,0.02286141,2538.2,2537.8,3.2078]
[1724893719861,0.02286141,2538.3,2537.8,3.2078]
[1724893720062,0.02286141,2538.2,2537.8,3.2078]
[1724893720463,0.39387,2538.3,2537.8,3.2078]
[1724893720669,0.02286141,2538.1,2537.8,3.2078]
[1724893720974,0.39388,2538.2,2537.8,3.2078]
[1724893721177,0.38176036,2538.1,2537.8,3.2078]
[1724893721371,0.3589,2538.1,2537.8,3.2078]
[1724893721578,0.39387,2538.3,2537.8,3.2078]
[1724893721776,0.39388,2538.2,2537.8,3.2078]
[1724893722468,6.9863,2538.6,2537.8,3.60174]
[1724893722666,0.39386,2538.4,2537.8,3.2078]
[1724893722867,3.5663,2538.6,2538.1,0.39388]
[1724893723268,3.5663,2538.6,2538.2,0.3878]
[1724893723474,3.96012,2538.6,2538.2,0.3878]
[1724893724080,0.39384,2538.5,2538.2,0.3878]
[1724893724279,0.39384,2538.5,2538.0,0.3786]
[1724893724477,0.39384,2538.5,2538.0,0.7664]
[1724893724679,3.96012,2538.6,2538.0,0.7664]
[1724893724980,3.5663,2538.6,2538.0,1.1603]
[1724893725382,0.39383,2538.5,2538.0,0.7664]
[1724893725782,0.39385,2538.4,2538.0,0.7664]
[1724893726577,0.39384,2538.5,2538.0,0.7664]
[1724893726984,3.96012,2538.6,2538.0,1.16031]
[1724893727376,0.39383,2538.5,2538.0,1.16031]
[1724893727577,3.96012,2538.6,2538.0,1.16031]
[1724893727771,3.5663,2538.6,2538.1,0.39388]
[1724893727976,3.5663,2538.6,2538.2,7.02166]
[1724893728380,3.5663,2538.6,2538.2,6.6278]
[1724893728591,3.5663,2538.6,2538.4,0.39384]
[1724893728883,3.2078,2538.6,2538.4,0.39383]
[1724893729383,0.00586763,2538.7,2538.6,0.39381]
[1724893729774,0.00586763,2538.7,2538.6,3.9392]
[1724893731096,0.00586763,2538.7,2538.6,13.75301]
[1724893731383,3.97482,2539.9,2539.4,0.39368]
[1724893731683,3.9328,2539.9,2539.3,3.6015]
[1724893731887,3.42,2539.8,2539.4,40.8]
[1724893732083,0.98419,2539.5,2538.7,0.3705]
[1724893732278,3.2078,2539.3,2538.8,0.00591483]
[1724893732477,3.2078,2539.3,2538.9,40.8]
[1724893732678,0.39375,2539.1,2538.9,40.8]
[1724893733081,0.39375,2539.1,2538.8,0.00591483]
[1724893733280,0.3548,2539.2,2538.8,0.00591483]
[1724893733589,0.39377,2538.9,2538.8,0.00591483]
[1724893734083,4.33217,2538.9,2538.8,0.00591483]
[1724893734283,4.68657,2538.9,2538.8,0.00591483]
[1724893734689,0.74817,2538.9,2538.8,0.00591483]
[1724893734986,0.3544,2538.9,2538.8,0.00591483]
[1724893735688,15.091,2538.9,2538.8,0.00591483]
[1724893735889,0.39384,2538.5,2538.1,3.2078]
[1724893736187,3.42,2538.5,2538.1,3.2078]
[1724893736486,0.39387,2538.3,2537.8,4.94533]
[1724893736690,1.10935,2538.4,2537.9,0.39392]
[1724893736894,1.10935,2538.4,2537.9,41.19983483]
[1724893737189,0.39386,2538.3,2537.9,40.80591483]
[1724893737387,0.39388,2538.2,2537.9,40.80591483]
[1724893737587,0.7155,2538.4,2537.9,40.80591483]
[1724893737790,0.39387,2538.3,2537.9,40.80591483]
[1724893738184,0.7155,2538.4,2537.9,40.80591483]
[1724893738185,1.10935,2538.4,2537.9,40.80591483]
[1724893738377,0.39387,2538.3,2537.9,40.80591483]
[1724893738581,1.10935,2538.4,2537.9,40.80591483]
[1724893738993,0.7155,2538.4,2537.9,40.80591483]
[1724893739192,0.39389,2538.2,2537.9,40.80591483]
[1724893739688,0.39388,2538.2,2537.9,40.80591483]
[1724893739889,3.2078,2538.3,2537.9,40.80591483]
[1724893740086,0.39388,2538.2,2537.9,40.80591483]
[1724893740289,0.39389,2538.1,2537.9,40.80591483]
[1724893741004,3.2078,2538.3,2537.9,40.80591483]
[1724893741294,3.2078,2538.3,2537.9,0.00591483]
[1724893741295,0.39391,2538.0,2537.9,0.00591483]
[1724893741689,7.54171,2538.0,2537.9,0.00591483]
[1724893741891,13.75391,2538.0,2537.9,0.00591483]
[1724893742091,14.73869,2538.0,2537.9,0.00591483]
[1724893743601,0.39402,2537.3,2537.2,40.8]
[1724893743802,3.2078,2537.3,2536.6,13.4858]
[1724893744096,3.2078,2537.3,2536.6,6.6278]
[1724893744097,0.39407,2537.0,2536.6,6.6278]
[1724893744392,0.3611,2537.2,2536.7,40.8]
[1724893744610,0.39407,2537.0,2536.7,0.00591483]
[1724893744788,0.39406,2537.0,2536.7,0.00591483]
[1724893744988,0.39405,2537.1,2536.7,0.00591483]
[1724893745193,0.36701483,2537.2,2536.7,0.40001483]
[1724893745397,0.36701483,2537.2,2536.9,3.2078]
[1724893745398,0.00591483,2537.2,2536.9,3.2078]
[1724893745694,0.39995483,2537.2,2536.9,3.2078]
[1724893745899,0.00591483,2537.2,2536.9,3.2078]
[1724893746283,0.39994483,2537.2,2536.9,3.2078]
[1724893746488,0.00591483,2537.2,2536.8,4.19949]
[1724893746687,0.39994483,2537.2,2536.8,3.8054]
[1724893747187,0.00591483,2537.2,2536.8,4.19948]
[1724893747492,0.00591483,2537.2,2536.9,0.39408]
[1724893747998,0.00591483,2537.2,2536.8,44.99948]
[1724893748395,0.00591483,2537.2,2536.9,0.39408]
[1724893748596,0.00591483,2537.2,2536.8,44.6054]
[1724893748797,3.2078,2537.6,2537.0,3.42]
[1724893749098,3.2078,2537.9,2537.5,3.42]
[1724893749296,0.76418,2538.2,2537.7,0.39395]
[1724893749602,0.39389,2538.1,2537.6,3.60176]
[1724893749796,0.76418,2538.2,2537.7,0.39395]
[1724893750100,0.00591483,2538.1,2537.7,0.39395]
[1724893750299,0.39391,2538.0,2537.7,0.3739]
[1724893750600,0.39393,2537.9,2537.6,3.2078]
[1724893751694,0.39395,2537.7,2537.6,3.2078]
[1724893752700,0.39398,2537.6,2537.3,0.3739]
[1724893753402,0.3822,2537.8,2537.3,0.3739]
[1724893753702,0.39395,2537.7,2537.3,0.76792]
[1724893754001,0.39397,2537.6,2537.3,0.3739]
[1724893754495,3.59,2537.8,2537.3,0.3739]
[1724893754697,0.39399,2537.5,2537.3,0.3739]
[1724893755297,3.59,2537.8,2537.3,0.3739]
[1724893755604,3.59,2537.8,2537.3,0.76792]
[1724893755789,3.59,2537.8,2537.3,0.3739]
[1724893755995,0.39397,2537.7,2537.3,0.3739]
[1724893756701,4.78545483,2538.1,2537.9,0.39392]
[1724893756702,0.00591483,2538.1,2537.9,0.39392]
[1724893757205,0.00591483,2538.1,2538.0,0.7448]
[1724893759102,0.00591483,2538.1,2538.0,1.13871]
[1724893759299,0.00591483,2538.1,2538.0,8.49871]
[1724893759810,0.00591483,2538.1,2538.0,49.29871]
[1724893760895,0.00591483,2538.1,2538.0,45.87871]
[1724893761096,0.00591483,2538.1,2538.0,45.4848]
[1724893761802,0.00591483,2538.1,2538.0,45.87871]
[1724893762197,0.00591483,2538.1,2538.0,55.29871]
[1724893762399,0.39381,2538.7,2538.0,54.9048]
[1724893762704,0.3938,2538.8,2538.3,6.6278]
[1724893762909,0.39378,2538.9,2538.3,6.6278]
[1724893763102,0.39378,2538.9,2538.6,0.39381]
[1724893763309,0.3625,2539.1,2538.6,0.39381]
[1724893763310,0.39967483,2539.0,2538.7,0.7162]
[1724893763495,0.39378,2538.8,2538.7,0.7162]
[1724893763700,0.39378,2538.8,2538.7,0.364]
[1724893763902,0.00591483,2539.0,2538.7,0.364]
[1724893764110,0.39378,2538.8,2538.7,0.364]
[1724893764314,0.39381,2538.6,2538.5,0.00591483]
[1724893764614,0.74721,2538.7,2538.5,0.00591483]
[1724893764999,0.99033483,2539.0,2538.5,0.00591483]
[1724893765000,3.42591483,2539.0,2538.5,0.00591483]
[1724893765206,0.39377,2538.9,2538.5,0.39974483]
[1724893766119,0.39377,2538.9,2538.5,0.00591483]
[1724893766708,0.39377,2538.9,2538.5,0.39974483]
[1724893767217,0.00591483,2539.0,2538.6,0.3938]
[1724893767409,0.00591483,2539.0,2538.7,0.3938]
[1724893767909,0.00591483,2539.0,2538.5,0.39973483]
[1724893768118,0.39377,2538.9,2538.5,0.39973483]
[1724893768814,0.39379,2538.8,2538.5,0.00591483]
[1724893769117,0.00591483,2539.0,2538.5,0.00591483]
[1724893769314,0.39381,2538.6,2538.5,0.00591483]
[1724893769613,0.39381,2538.7,2538.5,0.00591483]
[1724893771014,0.39381,2538.6,2538.5,0.00591483]
[1724893771310,0.77181,2538.6,2538.5,0.00591483]
[1724893771513,4.71101,2538.6,2538.5,0.00591483]
[1724893773303,4.71101,2538.6,2537.4,7.3988]
[1724893773304,0.39393,2537.9,2537.4,7.3988]
[1724893773508,0.39393,2537.9,2537.4,8.54899]
[1724893773712,4.19247,2538.3,2537.5,0.39398]
[1724893773713,0.3871,2537.8,2537.5,0.39398]
[1724893774020,0.3574,2538.5,2537.6,41.19397]
[1724893774021,0.3939,2538.1,2537.6,41.19397]
[1724893774213,0.02286107,2538.0,2537.6,41.19988483]
[1724893774420,0.02286122,2537.9,2537.6,40.80591483]
[1724893775218,0.02286122,2537.9,2537.6,41.19987483]
[1724893775412,0.02286122,2537.8,2537.6,41.19987483]
[1724893775625,0.02286122,2537.7,2537.6,41.19987483]
[1724893775925,0.39387,2538.3,2537.7,0.39395]
[1724893776114,0.02285961,2538.2,2537.8,0.39393]
[1724893776309,0.02285961,2538.2,2537.7,3.2078]
[1724893776509,0.39394,2537.9,2537.7,3.2078]
[1724893776714,0.77389961,2537.8,2537.7,3.2078]
[1724893777121,0.39395,2537.7,2537.6,0.00591483]
[1724893777321,0.41680961,2537.7,2537.6,0.00591483]
[1724893777719,0.41682358,2537.7,2537.6,0.00591483]
[1724893778319,0.02287358,2537.7,2537.6,0.00591483]
[1724893779023,0.02287358,2537.7,2537.6,3.21371483]
[1724893779227,0.39395,2537.7,2537.6,0.00591483]
[1724893779429,0.41682358,2537.7,2537.6,0.00591483]
[1724893779733,11.52648101,2537.7,2537.2,3.2078]
[1724893779920,0.39403,2537.3,2536.9,0.39407]
[1724893780228,0.02287358,2537.2,2536.8,3.98679]
[1724893780531,0.39407,2537.0,2536.8,3.2078]
[1724893780819,0.02287358,2536.9,2536.8,3.2078]
[1724893781028,0.35911483,2537.2,2536.9,0.39408]
[1724893781225,0.02288514,2537.1,2536.8,3.60188]
[1724893781927,0.02288492,2537.0,2536.8,3.60188]
[1724893782219,0.02288492,2536.9,2536.8,3.60188]
[1724893782425,0.00591483,2537.2,2536.9,0.39407]
[1724893782624,0.00591483,2537.2,2537.0,0.39406]
[1724893783026,0.39994483,2537.2,2536.8,3.2078]
[1724893783229,0.00591483,2537.2,2536.8,3.60189]
[1724893783633,0.00591483,2537.2,2536.9,0.39407]
[1724893784719,0.00591483,2537.2,2536.8,3.2078]
[1724893784916,0.00591483,2537.2,2537.1,0.39405]
[1724893785426,0.00591483,2537.2,2537.1,4.33565]
[1724893785725,0.00591483,2537.2,2537.1,45.13565]
[1724893786615,0.00591483,2537.2,2537.1,45.86715]
[1724893787115,0.00591483,2537.2,2537.1,49.07495]
[1724893787323,0.00591483,2537.2,2537.1,49.42565]
[1724893787523,0.00591483,2537.2,2537.1,0.39405]
[1724893787724,0.00591483,2537.2,2537.1,10.95345]
[1724893787931,3.2078,2538.0,2537.1,16.5594]
[1724893788121,3.2078,2538.0,2537.9,0.39392]
[1724893788317,3.2078,2538.0,2537.6,3.41]
[1724893788318,3.2078,2538.0,2537.8,0.39393]
[1724893788523,3.60171,2538.0,2537.7,1.13874]
[1724893788722,3.60171,2538.0,2537.8,0.39394]
[1724893789129,3.60171,2538.0,2537.7,1.13875]
[1724893789323,3.60171,2538.0,2537.5,4.5655]
[1724893789324,0.39394,2537.8,2537.5,4.191]
[1724893789626,0.39393,2537.9,2537.5,4.58497]
[1724893790629,0.39394,2537.8,2537.5,4.58497]
[1724893790934,0.98474,2538.1,2537.5,4.191]
[1724893791230,0.39395,2537.8,2537.5,4.191]
[1724893791731,0.3673,2537.9,2537.5,4.191]
[1724893792035,0.39397,2537.6,2537.5,4.191]
[1724893792225,0.39397,2537.6,2537.0,3.2078]
[1724893792226,0.98493,2537.6,2537.0,3.2078]
[1724893792827,0.39402,2537.3,2537.0,44.0078]
[1724893793329,0.39401,2537.4,2537.0,44.40186]
[1724893793529,3.5852,2537.7,2537.0,44.0078]
[1724893793734,0.3774,2537.7,2537.3,3.2078]
[1724893793932,0.77136,2537.7,2537.4,0.3767]
[1724893794131,0.3774,2537.7,2537.3,3.2078]
[1724893794533,0.3774,2537.7,2537.4,0.394]
[1724893795034,0.3673,2537.9,2537.6,0.39396]
[1724893795227,3.5863,2538.1,2537.8,0.39393]
[1724893795424,3.5863,2538.1,2537.7,0.39394]
[1724893796034,3.5863,2538.1,2537.9,0.39391]
[1724893796235,3.2078,2538.1,2537.9,0.39391]
[1724893797534,0.00591483,2538.2,2537.9,7.1478]
[1724893797735,0.00591483,2538.2,2538.1,0.39389]
[1724893797930,0.00591483,2538.2,2538.1,4.33389]
[1724893798237,0.00591483,2538.2,2538.1,40.8]
[1724893798640,0.00591483,2538.2,2538.1,45.13389]
[1724893799536,0.39379,2538.8,2538.4,0.39383]
[1724893799744,0.39379,2538.8,2538.5,0.3549]
[1724893799932,0.3768,2538.9,2538.6,0.39381]
[1724893800742,0.3768,2538.9,2538.5,0.3549]
[1724893800743,0.77057,2538.9,2538.5,0.74872]
[1724893800950,0.39378,2538.8,2538.5,0.3549]
[1724893801443,0.77058,2538.9,2538.5,0.74873]
[1724893801633,0.39379,2538.8,2538.5,0.3549]
[1724893801832,0.3768,2538.9,2538.3,3.2078]
[1724893802033,0.39384,2538.5,2538.3,3.2078]
[1724893802247,0.02284723,2538.8,2538.1,40.8]
[1724893802248,3.2078,2538.7,2538.1,40.8]
[1724893802448,3.2078,2538.7,2537.9,3.57971483]
[1724893802449,1.36549554,2538.6,2537.9,3.21371483]
[1724893802634,0.39386,2538.4,2537.9,3.60762483]
[1724893802836,1.34264,2538.6,2537.9,3.21371483]
[1724893802837,0.3581,2538.6,2537.9,3.21371483]
[1724893803143,0.39385,2538.4,2538.0,40.8]
[1724893803347,0.39387,2538.3,2538.0,40.8]
[1724893803548,0.3704,2538.3,2538.0,40.8]
[1724893803837,0.3704,2538.3,2537.9,3.21371483]
[1724893804146,0.3939,2538.1,2537.9,3.21371483]
[1724893804342,0.3704,2538.3,2537.9,3.21371483]
[1724893804343,0.39391,2538.0,2537.9,3.21371483]
[1724893804639,0.3939,2538.1,2537.9,3.21371483]
[1724893804943,0.02286365,2538.0,2537.9,3.21371483]
[1724893805536,0.41677365,2538.0,2537.9,3.21371483]
[1724893805738,0.41677365,2538.0,2537.9,0.00591483]
[1724893805739,4.35677365,2538.0,2537.9,0.00591483]
[1724893805940,4.35677511,2538.0,2537.9,0.00591483]
[1724893806244,10.74517511,2538.0,2537.9,0.00591483]
[1724893806434,10.74518375,2538.0,2537.9,0.00591483]
[1724893806842,4.74518375,2538.0,2537.9,0.00591483]
[1724893807146,4.74518231,2538.0,2537.9,0.00591483]
[1724893808237,0.41127231,2538.0,2537.9,0.00591483]
[1724893808436,0.41678231,2538.0,2537.9,0.00591483]
[1724893808740,4.35678231,2538.0,2537.9,0.00591483]
[1724893809144,0.39401,2537.4,2537.2,3.2078]
[1724893809356,0.39402,2537.3,2537.2,3.2078]
[1724893809548,0.39405,2537.1,2537.0,40.8]
[1724893809744,0.39406,2537.0,2536.9,7.3988]
[1724893809942,0.41694178,2537.0,2536.9,7.3988]
[1724893810251,4.35855121,2537.0,2536.7,0.00591483]
[1724893810441,3.60189,2536.8,2536.7,0.00591483]
[1724893810649,17.71309121,2536.8,2535.7,4.191]
[1724893810841,8.73318,2536.5,2535.8,40.8]
[1724893811040,0.39421,2536.1,2535.4,0.39431]
[1724893811242,0.02289121,2536.0,2535.3,9.26992]
[1724893811445,4.54,2535.9,2534.9,3.2078]
[1724893811641,4.54,2535.9,2535.1,0.00591483]
[1724893811642,4.54,2535.4,2535.1,0.00591483]
[1724893811841,0.02289121,2535.3,2535.1,0.00591483]
[1724893812252,0.3794,2535.6,2535.1,0.00591483]
[1724893812441,0.77369,2535.6,2535.1,0.00591483]
[1724893812640,0.3794,2535.6,2535.1,0.00591483]
[1724893813151,0.77369,2535.6,2535.1,0.00591483]
[1724893813540,0.3794,2535.6,2535.1,0.00591483]
[1724893813737,0.39431,2535.5,2535.1,0.00591483]
[1724893813944,0.3794,2535.6,2535.1,0.00591483]
[1724893814145,0.39434,2535.3,2535.1,0.00591483]
[1724893814544,4.33914,2535.3,2535.1,0.00591483]
[1724893814747,0.39434,2535.2,2535.1,0.00591483]
[1724893814953,4.33913,2535.3,2535.1,0.00591483]
[1724893815451,3.9448,2535.3,2535.1,0.00591483]
[1724893816151,3.2078,2535.5,2535.1,0.00591483]
[1724893816753,3.60211,2535.5,2535.1,0.00591483]
[1724893817054,7.1518,2535.5,2535.1,0.00591483]
[1724893817353,0.39434,2535.2,2535.1,0.00591483]
[1724893817647,0.39432,2535.4,2535.1,0.00591483]
[1724893818666,3.2078,2535.5,2535.1,0.00591483]
[1724893818842,3.6021,2535.5,2535.1,0.00591483]
[1724893819042,0.39431,2535.4,2535.1,0.00591483]
[1724893820157,3.944,2535.4,2535.1,0.00591483]
[1724893820346,0.39434,2535.2,2535.1,0.00591483]
[1724893820855,4.33914,2535.2,2535.1,0.00591483]
[1724893821054,0.39432,2535.4,2535.1,0.00591483]
[1724893821254,3.2078,2535.5,2535.1,0.00591483]
[1724893821559,0.39432,2535.4,2535.1,0.00591483]
[1724893822145,3.2078,2535.5,2535.1,0.00591483]
[1724893822842,0.39434,2535.2,2535.1,0.00591483]
[1724893823250,4.33914,2535.2,2535.1,0.00591483]
[1724893827264,3.9448,2535.2,2535.1,0.00591483]
[1724893828155,4.33914,2535.2,2535.1,0.00591483]
[1724893831160,3.2078,2535.5,2535.1,0.00591483]
[1724893831663,3.2078,2535.5,2535.1,0.40026483]
[1724893832057,0.00591483,2535.7,2535.1,10.56771483]
[1724893832263,0.00591483,2535.7,2535.4,0.3943]
[1724893832763,3.2078,2535.5,2535.1,0.00591483]
[1724893832968,3.60214,2535.2,2535.1,0.00591483]
[1724893833169,3.80434,2535.3,2535.1,0.00591483]
[1724893833857,7.74914,2535.3,2535.1,0.00591483]
[1724893834051,0.39434,2535.3,2535.1,0.00591483]
[1724893834466,4.33914,2535.3,2535.1,0.00591483]
[1724893835270,0.39434,2535.2,2535.1,0.00591483]
[1724893835563,3.9448,2535.3,2535.1,0.00591483]
[1724893835564,0.39433,2535.3,2535.1,0.00591483]
[1724893836153,0.39434,2535.2,2535.1,0.00591483]
[1724893836351,0.39434,2535.3,2535.1,0.00591483]
[1724893837055,3.96752,2535.4,2535.1,0.00591483]
[1724893837764,0.75972,2535.4,2535.1,0.00591483]
[1724893838164,4.55,2535.5,2535.1,0.40026483]
[1724893838363,3.70164229,2535.7,2535.2,40.8]
[1724893838563,0.39433,2535.3,2535.1,0.00591483]
[1724893838765,0.39434,2535.2,2535.1,0.00591483]
[1724893839268,4.33914,2535.2,2535.1,0.00591483]
[1724893839859,0.39434,2535.3,2535.1,0.00591483]
[1724893840368,0.39434,2535.2,2535.1,0.00591483]
[1724893840565,3.2078,2535.4,2535.1,0.00591483]
[1724893840765,3.60212,2535.4,2535.1,0.00591483]
[1724893841663,3.2078,2535.4,2535.1,0.00591483]
[1724893841872,3.60211,2535.4,2535.1,0.00591483]
[1724893842066,3.2078,2535.4,2535.1,0.00591483]
[1724893842661,3.60211,2535.4,2535.1,0.00591483]
[1724893843771,3.60212,2535.4,2535.1,0.00591483]
[1724893844374,0.39433,2535.3,2535.1,0.00591483]
[1724893844775,3.60212,2535.4,2535.1,0.00591483]
[1724893846076,0.39433,2535.3,2535.1,0.00591483]
[1724893846776,0.39434,2535.2,2535.1,0.00591483]
[1724893847772,8.88914,2535.2,2535.1,0.00591483]
[1724893849572,14.4948,2535.2,2534.0,3.2078]
[1724893849779,0.386,2535.3,2533.8,0.3677]
[1724893849780,4.55,2534.1,2533.8,0.3677]
[1724893849974,4.55,2533.9,2533.5,40.8]
[1724893850282,0.39458,2533.7,2533.5,40.8]
[1724893850468,4.9446,2533.6,2533.3,0.3793]
[1724893850673,4.55,2533.6,2533.2,3.21371483]
[1724893850976,0.00591483,2533.7,2533.3,41.1793]
[1724893851366,0.00591483,2533.7,2533.4,0.39462]
[1724893851770,0.00591483,2533.7,2533.4,4.34182]
[1724893851970,0.00591483,2533.7,2533.5,7.155]
[1724893852272,0.00591483,2533.7,2533.6,0.75379]
[1724893852573,0.00591483,2533.7,2533.6,4.70099]
[1724893852874,0.00591483,2533.7,2533.6,10.70099]
[1724893854379,0.00591483,2533.7,2533.6,51.50099]
[1724893855671,0.39447,2534.4,2533.6,51.1064]
[1724893855872,0.39447,2534.4,2534.1,3.2078]
[1724893856081,3.80446,2534.5,2534.1,3.2078]
[1724893856275,3.41,2534.5,2534.1,3.60231]
[1724893856674,3.80445,2534.5,2534.2,0.3886]
[1724893857278,3.41,2534.5,2534.2,0.3886]
[1724893858172,0.00591483,2534.6,2534.2,4.3342]
[1724893858373,0.00591483,2534.6,2534.5,0.39445]
[1724893858680,0.00591483,2534.6,2534.5,6.39445]
[1724893858881,0.00591483,2534.6,2534.5,10.34005]
[1724893859078,0.00591483,2534.6,2534.5,51.14005]
[1724893859477,0.3779,2535.4,2534.5,54.1556]
[1724893859685,3.7879,2535.4,2534.9,3.2078]
[1724893860077,0.39435,2535.2,2534.8,0.3944]
[1724893860282,0.39433,2535.3,2534.8,0.3944]
[1724893860474,0.39433,2535.3,2534.8,0.00591483]
[1724893860475,3.21371483,2535.3,2534.8,0.00591483]
[1724893860682,0.39437,2535.1,2534.8,0.00591483]
[1724893861180,7.76371483,2535.3,2534.8,0.00591483]
[1724893861181,8.15804483,2535.3,2534.8,0.00591483]
[1724893861373,0.39434,2535.2,2534.8,0.00591483]
[1724893861579,0.39439,2534.9,2534.8,0.00591483]
[1724893861987,4.33919,2534.9,2534.8,0.00591483]
[1724893862882,10.70279,2534.9,2534.8,0.00591483]
[1724893864692,0.39441,2534.8,2533.8,0.74995]
[1724893864989,4.55,2534.4,2533.9,0.39454]
[1724893865186,0.39446,2534.5,2533.9,0.39454]
[1724893865488,0.39447,2534.4,2533.9,0.00591483]
[1724893865877,0.3669,2534.3,2533.9,0.00591483]
[1724893866583,0.3669,2534.3,2533.9,0.40045483]
[1724893866786,0.3669,2534.3,2533.9,0.00591483]
[1724893867378,0.3669,2534.3,2533.9,40.80591483]
[1724893867889,7.7578,2534.7,2534.1,0.39451]
[1724893867890,8.50783,2534.7,2534.1,0.39451]
[1724893868487,8.1134,2534.7,2533.9,40.80591483]
[1724893868784,0.39446,2534.5,2533.9,41.20045483]
[1724893868988,0.39446,2534.5,2533.9,40.80591483]
[1724893869180,0.39445,2534.6,2534.0,0.39453]
[1724893870380,0.39446,2534.5,2534.0,0.39453]
[1724893870885,0.39444,2534.6,2534.1,0.39451]
[1724893871693,0.39444,2534.6,2533.9,40.80591483]
[1724893871986,8.50783,2534.7,2534.2,0.39449]
[1724893872183,8.1134,2534.7,2534.2,0.39449]
[1724893872579,8.1134,2534.7,2533.9,40.80591483]
[1724893872580,8.1134,2534.7,2534.3,0.39448]
[1724893872885,8.1134,2534.7,2534.2,0.39449]
[1724893873189,8.50782,2534.7,2534.2,0.39449]
[1724893873387,8.1134,2534.7,2534.3,0.39448]
[1724893873593,8.1134,2534.7,2534.1,0.3815]
[1724893873782,8.1134,2534.7,2534.4,0.39446]
[1724893874088,8.1134,2534.7,2534.3,0.39447]
[1724893874294,8.1134,2534.7,2534.4,0.39447]
[1724893874887,8.1134,2534.7,2534.3,0.39448]
[1724893875185,0.39446,2534.5,2534.0,7.79332]
[1724893875386,0.39446,2534.5,2534.0,4.191]
[1724893875792,0.39447,2534.4,2534.0,4.191]
[1724893875990,3.60227,2534.4,2534.0,4.191]
[1724893876401,0.3945,2534.2,2534.0,4.191]
[1724893876696,0.359,2534.1,2534.0,4.191]
[1724893876994,0.7328,2534.1,2533.9,0.00591483]
[1724893877992,7.7578,2534.4,2533.9,0.00591483]
[1724893878199,8.1316,2534.4,2534.0,0.39452]
[1724893878588,8.52608,2534.4,2533.9,0.40045483]
[1724893878795,0.39448,2534.3,2533.9,0.40045483]
[1724893879299,0.39448,2534.3,2533.9,0.00591483]
[1724893880295,8.52608,2534.4,2534.0,0.39453]
[1724893881194,8.1316,2534.4,2534.0,0.39453]
[1724893882096,3.41,2534.3,2534.0,0.39453]
[1724893882801,3.41,2534.3,2533.9,0.40045483]
[1724893883002,3.41,2534.3,2533.9,0.00591483]
[1724893883201,0.39453,2534.0,2533.9,0.00591483]
[1724893883386,3.60233,2534.0,2533.9,0.00591483]
[1724893883593,14.31141321,2534.0,2533.9,0.00591483]